bitfinex/quotes_ETHUSD_20240719
["timestamp","ask_amount","ask_price","bid_price","bid_amount"]
[1721356645749,2.4133,3415.5,3414.8,3.97942]
[1721356646457,2.4639,3415.8,3415.0,2.3706]
[1721356646645,2.4639,3415.8,3415.2,3.97901]
[1721356647947,2.9274,3416.0,3415.3,2.92798]
[1721356648248,2.9274,3416.0,3415.4,1.051]
[1721356648976,2.92723,3416.2,3415.5,2.92781]
[1721356653944,0.45890549,3416.4,3415.4,1.051]
[1721356654149,2.92733,3416.1,3415.3,2.92794]
[1721356655296,2.92766,3415.7,3415.0,5.29885]
[1721356655458,2.92766,3415.7,3415.1,3.0]
[1721356655668,3.97866,3415.7,3415.0,5.29885]
[1721356655969,0.39738055,3416.3,3414.6,5.39637]
[1721356655970,2.928,3415.3,3414.6,5.39637]
[1721356658470,2.92785,3415.5,3414.6,5.39637]
[1721356658794,2.92785,3415.5,3414.8,2.92842]
[1721356659109,2.92766,3415.7,3414.9,2.92828]
[1721356659400,2.92774,3415.6,3414.9,2.92828]
[1721356661069,2.92783,3415.5,3414.7,2.92851]
[1721356661383,2.92783,3415.5,3414.8,2.92841]
[1721356663261,2.3955,3415.4,3414.8,2.92841]
[1721356663466,2.92806,3415.3,3414.6,2.92859]
[1721356663669,5.32341,3415.4,3414.7,2.92845]
[1721356664412,2.92779,3415.6,3414.8,2.92841]
[1721356665504,2.92784,3415.5,3414.8,2.92841]
[1721356672442,2.92791,3415.4,3414.8,2.92841]
[1721356679475,2.92779,3415.6,3414.8,2.92841]
[1721356679849,2.92783,3415.5,3414.8,2.92841]
[1721356680374,2.92783,3415.5,3414.9,1.051]
[1721356680670,2.92775,3415.6,3415.0,2.3114]
[1721356683260,2.92775,3415.6,3415.1,1.051]
[1721356683881,0.63142963,3415.6,3415.0,2.3114]
[1721356684084,2.92791,3415.4,3415.0,2.3114]
[1721356688469,2.92811,3415.2,3414.7,2.2924]
[1721356688672,2.92826,3415.0,3414.5,1.051]
[1721356690703,2.92826,3415.0,3414.4,3.3434]
[1721356690872,2.92826,3415.0,3414.4,6.3434]
[1721356693439,5.892016,3415.0,3414.4,6.3434]
[1721356695331,5.892016,3415.0,3414.6,1.051]
[1721356703114,8.387616,3415.0,3414.4,4.051]
[1721356704440,2.92835,3414.9,3414.3,2.92885]
[1721356704646,2.92835,3414.9,3414.5,1.051]
[1721356707718,2.92835,3414.9,3414.6,2.2736]
[1721356708271,2.963756,3415.0,3414.7,3.97946]
[1721356708563,2.963756,3415.0,3414.9,1.051]
[1721356712026,2.963756,3415.0,3414.4,2.92875]
[1721356712335,5.892016,3415.0,3414.5,1.051]
[1721356718251,2.92834,3414.9,3414.5,1.051]
[1721356719257,2.92851,3414.7,3414.1,9.6984]
[1721356719496,2.92851,3414.7,3414.3,1.051]
[1721356721679,2.92834,3414.9,3414.3,1.051]
[1721356721884,2.963756,3415.0,3414.3,1.051]
[1721356721885,2.92843,3414.8,3414.3,1.051]
[1721356726284,2.92843,3414.8,3414.5,1.051]
[1721356726801,5.892016,3415.0,3414.5,1.051]
[1721356727894,2.92845,3414.8,3414.2,5.92892]
[1721356728095,2.92845,3414.8,3414.3,1.051]
[1721356729461,2.92845,3414.8,3414.2,5.92892]
[1721356729785,2.92845,3414.8,3414.2,6.97992]
[1721356730581,2.92851,3414.7,3414.2,4.051]
[1721356733890,2.92851,3414.7,3414.2,1.051]
[1721356735490,5.40781,3414.7,3414.2,1.051]
[1721356736528,2.92851,3414.7,3414.2,1.051]
[1721356739286,5.42654,3414.9,3414.2,1.051]
[1721356739486,5.42654,3414.9,3414.4,1.051]
[1721356739487,2.92834,3414.9,3414.4,1.051]
[1721356739688,2.92843,3414.8,3414.4,1.051]
[1721356740100,2.92843,3414.8,3414.2,1.051]
[1721356740917,2.92853,3414.7,3414.2,1.051]
[1721356743119,2.9286,3414.6,3414.0,5.3398]
[1721356743331,2.9286,3414.6,3414.2,1.051]
[1721356745640,2.92849,3414.8,3414.2,3.97993]
[1721356747340,2.92851,3414.7,3414.2,1.051]
[1721356748014,2.92837,3414.9,3414.2,3.97993]
[1721356748212,2.92845,3414.8,3414.2,1.051]
[1721356748404,2.92845,3414.8,3414.2,3.97994]
[1721356751551,2.92845,3414.8,3414.2,2.92894]
[1721356751723,2.92845,3414.8,3414.2,3.97994]
[1721356752853,2.92852,3414.7,3414.2,1.051]
[1721356753360,2.92873,3414.5,3414.2,1.051]
[1721356756542,2.92873,3414.5,3414.0,2.4107]
[1721356757054,2.92897,3414.2,3414.0,2.4107]
[1721356761121,2.92897,3414.2,3413.8,1.051]
[1721356761322,2.92897,3414.2,3413.8,4.051]
[1721356762744,2.92862,3414.6,3414.0,1.051]
[1721356762961,2.92862,3414.6,3414.3,2.4565]
[1721356763465,2.92862,3414.6,3414.4,1.051]
[1721356764656,2.92862,3414.6,3414.3,2.4565]
[1721356766433,2.963756,3415.0,3414.3,2.4565]
[1721356767234,2.9284,3414.9,3414.3,2.4565]
[1721356767462,2.963756,3415.0,3414.3,2.4565]
[1721356767463,2.92842,3414.8,3414.3,2.4565]
[1721356772719,2.963756,3415.0,3414.6,1.051]
[1721356772859,2.963756,3415.0,3414.7,2.4414]
[1721356785827,3.387891,3415.0,3414.7,2.4414]
[1721356790551,6.316141,3415.0,3414.7,2.4414]
[1721356791732,3.387891,3415.0,3414.7,2.4414]
[1721356791932,6.316151,3415.0,3414.7,2.4414]
[1721356794102,2.92834,3414.9,3414.7,2.4414]
[1721356801454,3.387891,3415.0,3414.7,2.4414]
[1721356801455,6.316151,3415.0,3414.7,2.4414]
[1721356803051,7.2405831,3415.0,3414.4,2.3505]
[1721356803260,2.3324,3414.8,3414.2,7.4]
[1721356803414,2.92882,3414.4,3414.2,7.4]
[1721356803968,2.92885,3414.3,3414.2,7.4]
[1721356804251,2.92885,3414.3,3414.0,2.3505]
[1721356804952,2.92874,3414.5,3414.0,2.3505]
[1721356805732,2.3324,3414.8,3414.1,1.051]
[1721356805733,2.92857,3414.7,3414.1,1.051]
[1721356805982,2.92857,3414.7,3414.2,2.4725]
[1721356808050,2.9284,3414.9,3414.2,2.4725]
[1721356808354,2.9284,3414.9,3414.3,1.051]
[1721356808554,2.92844,3414.8,3414.3,1.051]
[1721356808931,6.316171,3415.0,3414.4,2.4161]
[1721356809341,3.387891,3415.0,3414.5,1.051]
[1721356809542,3.387891,3415.0,3414.6,2.4003]
[1721356811116,6.316151,3415.0,3414.6,2.4003]
[1721356812982,6.316151,3415.0,3414.4,5.27746]
[1721356813116,2.92843,3414.8,3414.3,3.0]
[1721356813316,2.92843,3414.8,3414.1,5.3487]
[1721356814058,2.9286,3414.6,3414.1,5.3487]
[1721356816552,2.9286,3414.6,3414.1,2.3487]
[1721356816741,3.32656,3414.6,3414.1,2.3487]
[1721356818957,2.92877,3414.4,3413.9,3.5315]
[1721356828952,2.92845,3414.8,3414.1,1.051]
[1721356829147,3.387891,3415.0,3413.6,7.4]
[1721356829148,3.387891,3415.0,3414.5,3.97967]
[1721356829466,3.387891,3415.0,3414.5,1.051]
[1721356830190,3.387891,3415.0,3414.3,2.4978]
[1721356830191,3.387891,3415.0,3414.7,1.051]
[1721356831357,3.387891,3415.0,3414.8,2.3836]
[1721356834760,3.387891,3415.0,3414.7,1.051]
[1721356834983,3.387891,3415.0,3414.6,2.92859]
[1721356835869,3.387891,3415.0,3414.5,3.3474]
[1721356835870,3.387891,3415.0,3414.5,1.051]
[1721356836085,2.4928,3414.9,3414.4,5.92871]
[1721356836830,6.316151,3415.0,3414.4,5.92871]
[1721356837457,3.387891,3415.0,3414.4,5.92871]
[1721356840095,3.387891,3415.0,3414.5,2.4174]
[1721356840798,3.387891,3415.0,3414.4,6.97971]
[1721356841295,3.529445,3415.0,3414.4,6.97971]
[1721356843201,3.529445,3415.0,3414.5,2.92868]
[1721356845007,3.529445,3415.0,3414.6,1.051]
[1721356845302,3.529445,3415.0,3414.7,2.2805]
[1721356845872,3.529445,3415.0,3414.8,1.051]
[1721356846067,3.529445,3415.0,3414.9,5.85668]
[1721356846286,3.529445,3415.0,3414.9,11.68718]
[1721356846480,3.529445,3415.0,3414.9,14.61552]
[1721356846681,3.529445,3415.0,3414.9,17.16120301]
[1721356846888,3.529445,3415.0,3414.9,17.77333264]
[1721356847092,2.92698,3416.5,3415.6,2.2805]
[1721356847291,2.92681,3416.7,3416.0,1.051]
[1721356847492,2.92664,3416.9,3416.0,1.051]
[1721356847493,2.92672,3416.8,3416.1,2.9273]
[1721356847793,2.3242,3416.9,3416.2,3.97819]
[1721356848013,2.3242,3416.9,3416.3,2.92711]
[1721356848318,2.92653,3417.1,3416.3,2.92711]
[1721356848527,2.2733,3417.2,3416.6,1.051]
[1721356848695,5.19924,3417.8,3417.0,1.051]
[1721356848902,5.19924,3417.8,3417.0,3.97747]
[1721356849098,2.92594,3417.7,3417.0,2.92647]
[1721356849413,2.2733,3417.8,3417.0,2.92647]
[1721356849414,3.3243,3417.8,3417.0,2.92647]
[1721356849586,3.3243,3417.8,3417.0,3.97747]
[1721356849587,0.624999,3417.8,3417.0,3.97747]
[1721356849785,3.550879,3417.8,3417.0,3.97747]
[1721356850212,3.550879,3417.8,3416.8,2.9267]
[1721356850213,2.92595,3417.7,3416.8,2.9267]
[1721356850883,2.92578,3417.9,3417.0,2.92652]
[1721356851079,3.218358,3417.9,3417.0,2.92652]
[1721356851380,2.92586,3417.8,3417.0,2.92652]
[1721356853839,2.92614,3417.5,3416.6,2.92687]
[1721356854047,2.92614,3417.5,3416.7,3.55]
[1721356854893,2.92614,3417.5,3416.7,6.47677]
[1721356857338,2.92614,3417.5,3416.8,2.9267]
[1721356858410,2.92622,3417.4,3416.8,2.9267]
[1721356859644,2.92622,3417.4,3416.7,3.55]
[1721356860003,2.92622,3417.4,3416.7,6.47677]
[1721356860232,2.92622,3417.4,3416.8,2.9267]
[1721356860933,2.92628,3417.3,3416.7,3.55]
[1721356861521,2.92628,3417.3,3416.7,6.47677]
[1721356863915,2.92603,3417.6,3416.7,6.47677]
[1721356863916,2.92617,3417.5,3416.8,2.92669]
[1721356865046,2.92598,3417.7,3416.9,2.92655]
[1721356865460,2.92581,3417.9,3417.2,2.92635]
[1721356866214,2.92561,3418.1,3417.2,2.92631]
[1721356866517,2.92569,3418.0,3417.3,2.92628]
[1721356866815,2.92577,3417.9,3417.1,5.3432]
[1721356867028,2.92577,3417.9,3417.2,0.55]
[1721356868233,2.92608,3417.6,3416.8,2.92667]
[1721356868539,0.812435,3418.1,3416.9,3.55]
[1721356868540,3.218728,3417.5,3416.9,3.55]
[1721356868753,2.92612,3417.5,3416.9,3.55]
[1721356869348,2.92631,3417.3,3416.9,3.0]
[1721356869552,2.92631,3417.3,3416.8,3.0]
[1721356869723,2.92631,3417.3,3416.7,5.3231]
[1721356870129,2.92631,3417.3,3416.7,8.24989]
[1721356870332,2.92631,3417.3,3416.7,5.24989]
[1721356870526,2.92631,3417.3,3416.8,3.0]
[1721356871422,2.92631,3417.3,3416.7,5.3231]
[1721356872044,2.92637,3417.2,3416.7,5.3231]
[1721356872239,2.92645,3417.2,3416.7,3.0]
[1721356872451,2.92645,3417.2,3416.5,7.4]
[1721356872452,2.92645,3417.2,3416.6,3.0]
[1721356872654,2.92647,3417.1,3416.6,3.0]
[1721356874961,2.92634,3417.3,3416.6,5.92686]
[1721356875426,2.92634,3417.3,3416.7,2.92678]
[1721356875627,2.92634,3417.3,3416.7,3.97678]
[1721356875827,2.92634,3417.3,3416.8,3.0]
[1721356876976,2.92626,3417.4,3416.8,3.0]
[1721356877326,2.92639,3417.2,3416.8,3.0]
[1721356877650,2.92639,3417.2,3416.6,5.92688]
[1721356878436,2.92625,3417.4,3416.6,3.0]
[1721356878639,2.92606,3417.6,3416.9,3.9766]
[1721356880241,2.92611,3417.5,3416.9,2.9266]
[1721356881852,2.9262,3417.4,3416.8,5.28069]
[1721356882172,2.92607,3417.6,3416.9,5.92661]
[1721356887378,2.92603,3417.6,3417.0,2.92651]
[1721356891693,2.92611,3417.5,3416.9,3.0]
[1721356891979,2.92625,3417.4,3416.9,3.0]
[1721356893208,2.92625,3417.4,3416.8,2.354]
[1721356893209,2.92625,3417.4,3416.8,5.354]
[1721356893550,3.97612,3417.5,3416.8,5.354]
[1721356893757,2.92624,3417.4,3416.8,5.354]
[1721356893958,2.92629,3417.3,3416.8,5.354]
[1721356894338,2.92637,3417.2,3416.8,5.354]
[1721356894744,2.92646,3417.1,3416.8,5.354]
[1721356895140,1.05,3416.9,3416.5,8.01367387]
[1721356895460,9.83064,3416.6,3416.5,7.4]
[1721356895641,9.83064,3416.6,3415.6,3.64045926]
[1721356895642,2.92771,3415.7,3415.2,10.42987387]
[1721356895846,2.92785,3415.5,3415.3,1.01828558]
[1721356896045,2.92785,3415.5,3415.2,2.4162]
[1721356896358,2.92785,3415.5,3414.8,1.96819444]
[1721356896359,2.92785,3415.5,3414.8,1.05]
[1721356896542,2.92785,3415.5,3414.9,1.10181409]
[1721356896742,2.92785,3415.5,3414.9,0.08341249]
[1721356896965,5.85574,3415.5,3414.9,0.08341249]
[1721356897169,2.92793,3415.4,3414.9,0.08341249]
[1721356897392,2.3295,3416.1,3414.5,0.61367387]
[1721356897393,1.05,3415.1,3414.5,0.61367387]
[1721356897689,2.92874,3414.5,3413.9,1.05]
[1721356897854,2.92879,3414.4,3414.0,1.01861071]
[1721356898073,2.92879,3414.4,3413.8,2.43]
[1721356898958,2.92879,3414.4,3413.9,0.55]
[1721356899152,2.92879,3414.4,3413.9,3.55]
[1721356899358,2.92887,3414.3,3413.9,3.55]
[1721356899574,2.92833,3415.0,3413.9,3.55]
[1721356899785,2.92886,3414.3,3413.9,0.55]
[1721356900007,2.92886,3414.3,3414.0,0.298]
[1721356900211,2.92886,3414.3,3414.1,0.55]
[1721356900503,2.9292,3413.9,3413.8,2.43]
[1721356900673,2.92934,3413.8,3413.3,2.3782]
[1721356900865,5.0022,3415.2,3412.8,7.21414]
[1721356900866,2.523,3414.4,3412.8,0.14810419]
[1721356901066,5.85942,3413.3,3413.2,0.10118533]
[1721356901409,2.92963,3413.4,3412.8,2.41420419]
[1721356901569,2.92963,3413.4,3412.9,0.08346048]
[1721356901775,5.85915,3413.5,3412.9,0.08346048]
[1721356902003,2.92963,3413.4,3413.0,0.23495605]
[1721356902164,2.92963,3413.4,3413.1,0.11788402]
[1721356902598,2.92963,3413.4,3413.2,0.55]
[1721356902993,2.9298,3413.2,3413.1,0.11788402]
[1721356903611,2.9299,3413.1,3412.3,6.01755]
[1721356903820,2.9299,3413.1,3412.4,0.10120906]
[1721356904164,2.92999,3413.0,3412.4,0.10120906]
[1721356904371,2.93029,3412.7,3412.4,3.10120906]
[1721356904577,2.93029,3412.7,3412.3,0.11207682]
[1721356905219,2.93039,3412.6,3412.3,0.11207682]
[1721356905367,2.31893923,3412.6,3412.3,0.11207682]
[1721356905800,2.92941,3413.7,3412.2,2.2661]
[1721356905985,2.93004,3413.0,3412.4,0.05860223]
[1721356906197,2.93004,3413.0,3412.5,0.12115799]
[1721356906515,2.92982,3413.2,3412.3,0.17983207]
[1721356906698,2.92989,3413.1,3412.6,0.55]
[1721356907012,2.92989,3413.1,3412.3,3.11037207]
[1721356907013,2.92989,3413.1,3412.4,3.55]
[1721356907220,2.93006,3412.9,3412.4,0.64031574]
[1721356908229,2.92991,3413.1,3412.4,0.64031574]
[1721356908893,2.92991,3413.1,3412.4,3.57079574]
[1721356909098,2.92975,3413.3,3412.5,3.0]
[1721356909295,2.92975,3413.3,3412.6,0.55]
[1721356911476,2.92983,3413.2,3412.6,0.55]
[1721356911908,2.92988,3413.1,3412.6,0.55]
[1721356912116,2.92988,3413.1,3412.7,0.355]
[1721356912288,2.92988,3413.1,3412.8,0.55]
[1721356912704,2.92947122,3413.1,3412.8,0.55]
[1721356912921,2.92974,3413.3,3412.8,0.55]
[1721356914211,2.92981,3413.2,3412.8,0.55]
[1721356915520,2.92963,3413.4,3412.8,0.85742905]
[1721356916085,2.92972,3413.3,3412.8,0.85742905]
[1721356916625,2.92972,3413.3,3412.9,0.05859269]
[1721356918619,2.92947,3413.6,3412.9,0.05859269]
[1721356919119,2.92972,3413.3,3412.9,0.05859269]
[1721356919328,2.92972,3413.3,3412.9,0.41359269]
[1721356920121,2.92972,3413.3,3412.9,0.355]
[1721356921690,2.92961,3413.5,3412.9,0.355]
[1721356921890,2.92961,3413.5,3413.0,0.55]
[1721356922097,2.92961,3413.5,3413.0,0.85742905]
[1721356923036,2.92963,3413.4,3413.0,0.85742905]
[1721356924398,2.92963,3413.4,3413.0,0.55]
[1721356924599,2.92963,3413.4,3412.8,0.55]
[1721356925139,2.92947,3413.6,3412.8,0.55]
[1721356925140,2.92947,3413.6,3412.9,5.38869]
[1721356925301,2.92947,3413.6,3413.0,3.55]
[1721356928514,2.92954,3413.5,3413.0,3.55]
[1721356929236,2.92929,3413.8,3413.0,3.55]
[1721356930411,2.92929,3413.8,3413.1,0.05858656]
[1721356930620,2.92929,3413.8,3413.0,6.47996]
[1721356930621,2.313,3414.4,3413.2,0.55]
[1721356930804,2.92945,3413.7,3413.2,0.55]
[1721356931004,2.92945,3413.7,3413.1,0.55]
[1721356932316,2.92946,3413.6,3413.1,0.55]
[1721356932519,2.92954,3413.5,3413.1,0.55]
[1721356934448,2.92928,3413.8,3413.1,0.55]
[1721356934449,2.92942,3413.7,3413.1,0.55]
[1721356938468,2.92946,3413.6,3413.1,0.55]
[1721356939761,3.98146,3413.6,3413.1,0.55]
[1721356940062,3.98146,3413.6,3413.0,3.0]
[1721356940063,2.92969,3413.4,3413.0,3.0]
[1721356940386,2.92972,3413.3,3412.9,5.4587]
[1721356940533,2.92972,3413.3,3412.9,3.0]
[1721356940534,2.92986,3413.2,3412.9,3.0]
[1721356941130,2.92986,3413.2,3413.0,2.54754607]
[1721356941341,2.92986,3413.2,3413.1,4.01901843]
[1721356941556,2.92956,3413.5,3413.1,4.01901843]
[1721356941757,2.92956,3413.5,3413.2,2.54743144]
[1721356941958,2.92956,3413.5,3413.3,2.54743144]
[1721356942231,2.92956,3413.5,3413.4,2.54730022]
[1721356943168,2.92956,3413.5,3413.4,3.16097409]
[1721356943948,2.92956,3413.5,3413.4,3.16096495]
[1721356944540,2.92956,3413.5,3413.4,2.54729108]
[1721356944742,2.92956,3413.5,3413.4,3.16096495]
[1721356945343,2.92947,3413.6,3413.4,3.16096495]
[1721356945575,2.92947,3413.6,3413.5,1.01891643]
[1721356945875,5.859,3413.6,3413.5,1.01891643]
[1721356946044,5.859,3413.6,3413.2,0.61367387]
[1721356946045,2.92964,3413.4,3413.2,0.61367387]
[1721356946242,5.85928,3413.4,3413.3,2.54751508]
[1721356947346,5.85928,3413.4,3413.3,1.01900603]
[1721356947576,5.85928,3413.4,3413.3,2.54758088]
[1721356947783,5.85928,3413.4,3413.3,1.01900603]
[1721356947987,5.85928,3413.4,3413.3,2.54756478]
[1721356948307,5.85928,3413.4,3413.3,1.01900603]
[1721356948580,2.92973,3413.3,3413.0,3.61367387]
[1721356948754,2.92973,3413.3,3413.1,2.54761632]
[1721356949082,2.92973,3413.3,3413.2,3.16129019]
[1721356949284,2.92973,3413.3,3413.2,2.54761632]
[1721356949677,2.92973,3413.3,3413.2,1.01904653]
[1721356949868,2.92973,3413.3,3413.2,2.54751833]
[1721356950193,2.92973,3413.3,3412.9,3.61367387]
[1721356950487,2.92964,3413.4,3412.9,3.61367387]
[1721356950688,2.92964,3413.4,3413.0,3.16123484]
[1721356950889,2.92964,3413.4,3413.1,5.54756097]
[1721356951061,2.92964,3413.4,3413.2,1.01902439]
[1721356951260,2.92964,3413.4,3412.9,3.61367387]
[1721356951476,2.92973,3413.3,3413.0,2.54749285]
[1721356951676,2.92973,3413.3,3413.1,3.0]
[1721356951970,2.92973,3413.3,3412.9,3.0]
[1721356952177,2.92973,3413.3,3413.0,1.0190477]
[1721356952362,2.92973,3413.3,3412.9,3.0]
[1721356952563,2.92973,3413.3,3413.0,1.01903275]
[1721356952800,2.92973,3413.3,3412.9,3.0]
[1721356952996,2.92973,3413.3,3413.0,1.01903678]
[1721356953204,2.92973,3413.3,3412.9,3.0]
[1721356954390,2.92973,3413.3,3412.8,2.4953]
[1721356956366,2.93,3413.0,3412.7,3.0]
[1721356956561,2.93014,3412.8,3412.5,7.4]
[1721356957005,2.93007,3412.9,3412.5,7.4]
[1721356957995,2.93007,3412.9,3412.6,3.0]
[1721356960277,2.93007,3412.9,3412.4,3.0]
[1721356960517,2.93007,3412.9,3412.5,0.55]
[1721356962994,2.92996,3413.1,3412.5,0.55]
[1721356963413,2.92996,3413.1,3412.5,3.55]
[1721356964279,2.3326,3413.4,3412.5,3.55]
[1721356964508,2.92997,3413.0,3412.5,3.55]
[1721356973938,3.98197,3413.0,3412.5,3.55]
[1721356974615,2.92997,3413.0,3412.5,3.55]
[1721356974819,2.93006,3412.9,3412.5,0.55]
[1721356975032,2.93006,3412.9,3412.3,3.0]
[1721356975033,2.93006,3412.9,3412.4,0.55]
[1721356976923,3.98206,3412.9,3412.4,0.55]
[1721356977123,2.93006,3412.9,3412.4,0.55]
[1721356979859,3.98206,3412.9,3412.4,0.55]
[1721356980069,2.93006,3412.9,3412.4,0.55]
[1721356982173,2.93014,3412.8,3412.4,0.55]
[1721356986256,1.052,3413.0,3412.3,3.0]
[1721356986473,2.93047,3412.5,3412.2,3.0]
[1721356987579,2.931,3411.8,3411.7,2.4633]
[1721356987789,2.931,3411.8,3411.4,0.1411076]
[1721356987971,2.931,3411.8,3411.4,2.6044076]
[1721356988695,2.93083,3412.0,3411.4,2.6044076]
[1721356989708,2.93083,3412.0,3411.5,3.0]
[1721356990402,5.86252,3411.5,3411.4,0.1411076]
[1721356992062,8.31412,3411.5,3411.4,0.1411076]
[1721356993507,11.24538,3411.5,3411.4,0.1411076]
[1721356995000,8.31412,3411.5,3411.4,0.1411076]
[1721356995201,9.438638,3411.5,3411.4,0.1411076]
[1721356996806,6.987038,3411.5,3411.4,0.1411076]
[1721356998077,2.93126,3411.5,3411.4,0.1411076]
[1721356998297,2.9312,3411.6,3411.4,0.1411076]
[1721356998759,2.93084,3412.0,3411.4,0.1411076]
[1721356999166,2.93072,3412.2,3411.4,3.0724376]
[1721356999404,2.93072,3412.2,3411.4,5.4937376]
[1721356999767,2.93049,3412.4,3411.4,2.5624076]
[1721356999991,2.93032,3412.6,3411.8,2.93091]
[1721357000262,2.93015,3412.8,3412.0,2.93081]
[1721357000463,2.92981,3413.2,3412.1,2.4833]
[1721357000664,2.92981,3413.2,3412.5,2.93038]
[1721357000910,2.92971,3413.3,3412.6,2.93031]
[1721357001108,0.292958,3413.4,3412.4,2.93044]
[1721357001267,2.93006,3412.9,3412.3,2.93049]
[1721357001468,2.93006,3412.9,3412.4,3.0]
[1721357002462,0.292958,3413.4,3412.4,3.0]
[1721357002667,2.92988,3413.1,3412.4,3.0]
[1721357002974,2.92973,3413.3,3412.5,2.93038]
[1721357004204,2.92985,3413.2,3412.5,2.93038]
[1721357004407,2.92973,3413.3,3412.6,2.9303]
[1721357004719,2.92961,3413.5,3412.7,2.9302]
[1721357005492,2.92954,3413.6,3412.6,2.9303]
[1721357005936,2.92954,3413.6,3412.9,2.92999]
[1721357006221,2.9293,3413.8,3413.0,0.05859793]
[1721357007091,2.92913,3414.0,3413.2,2.92976]
[1721357007294,2.92913,3414.0,3413.3,2.92967]
[1721357007496,2.92896,3414.2,3413.4,3.0]
[1721357007692,3.457552,3414.2,3413.5,2.92951]
[1721357008113,2.92877,3414.4,3413.5,2.9881144]
[1721357008316,2.92877,3414.4,3413.6,5.92941]
[1721357008879,2.92877,3414.4,3413.7,2.92935]
[1721357009094,2.92886,3414.3,3413.6,3.0]
[1721357009299,2.92886,3414.3,3413.6,5.92945]
[1721357009517,2.92886,3414.3,3413.7,2.92936]
[1721357010817,2.92868,3414.5,3413.2,2.92979]
[1721357010818,2.9292,3413.9,3413.2,2.92979]
[1721357010995,2.9292,3413.9,3413.3,3.0]
[1721357011519,2.92929,3413.8,3413.3,3.0]
[1721357011725,2.92929,3413.8,3413.2,3.0]
[1721357011937,2.92887,3414.3,3413.6,2.92943]
[1721357012237,2.2723,3414.8,3413.4,2.92961]
[1721357012238,4.8013,3414.8,3413.4,2.92961]
[1721357012444,2.92912,3414.0,3413.4,2.92961]
[1721357014427,2.92912,3414.0,3413.2,5.92975]
[1721357014746,2.92955,3413.5,3413.1,7.4]
[1721357015044,0.585898,3413.4,3413.1,7.4]
[1721357015200,2.92955,3413.5,3413.1,7.4]
[1721357015399,2.92943,3413.7,3413.1,7.4]
[1721357015724,2.92946,3413.6,3413.1,7.4]
[1721357015954,2.92969,3413.4,3413.1,7.4]
[1721357016259,2.92971,3413.3,3413.1,7.4]
[1721357016539,2.92954,3413.5,3412.7,2.93023]
[1721357016713,2.92946,3413.6,3412.6,2.93031]
[1721357016899,2.92946,3413.6,3412.9,2.93004]
[1721357020232,2.92904,3414.1,3412.7,3.0]
[1721357020422,3.703014,3414.1,3413.2,2.92974]
[1721357020740,2.92926,3413.9,3413.2,2.92974]
[1721357020954,2.92926,3413.9,3413.0,2.92992]
[1721357021606,2.92926,3413.9,3413.1,2.92987]
[1721357022825,2.92929,3413.8,3413.1,2.92987]
[1721357023147,2.92957,3413.5,3412.9,2.92999]
[1721357023844,2.9293,3413.8,3413.0,2.92997]
[1721357025762,2.92913,3414.0,3413.2,2.92972]
[1721357026071,0.70732,3413.8,3413.2,2.92972]
[1721357029222,3.63663,3413.8,3413.1,2.92988]
[1721357029427,0.363663,3413.7,3413.1,2.92988]
[1721357030820,0.363663,3413.7,3413.2,2.92979]
[1721357031047,0.70732,3413.8,3413.2,2.92979]
[1721357031842,0.70732,3413.8,3413.1,2.92988]
[1721357032740,0.70732,3413.8,3413.4,2.92961]
[1721357034877,0.70732,3413.8,3413.5,2.92953]
[1721357036136,0.70732,3413.8,3413.0,2.4674]
[1721357036355,0.70732,3413.8,3413.6,2.9294]
[1721357037049,0.70732,3413.8,3413.5,2.92952]
[1721357037245,0.70732,3413.8,3413.0,5.3973]
[1721357037246,0.70732,3413.8,3413.0,2.4674]
[1721357037450,0.70732,3413.8,3413.1,2.92986]
[1721357037647,0.70732,3413.8,3413.4,2.92961]
[1721357038378,0.70732,3413.8,3413.5,2.92953]
[1721357040361,0.70732,3413.8,3413.3,2.92971]
[1721357040673,1.070955,3413.8,3413.3,2.92971]
[1721357040880,0.70732,3413.8,3413.0,5.4674]
[1721357041032,0.70732,3413.8,3413.5,2.92948]
[1721357042641,0.70732,3413.8,3413.6,2.92944]
[1721357043529,0.70732,3413.8,3413.4,2.9296]
[1721357043789,0.70732,3413.8,3413.6,2.9294]
[1721357044262,0.70732,3413.8,3413.4,2.9296]
[1721357044444,0.70732,3413.8,3413.7,2.92937]
[1721357046683,0.70732,3413.8,3413.7,5.85874]
[1721357048167,0.70732,3413.8,3413.7,8.78811]
[1721357048376,0.70732,3413.8,3413.7,17.55368]
[1721357048377,0.07122252,3413.8,3413.7,17.55368]
[1721357048577,2.3455,3416.0,3415.6,2.92774]
[1721357048886,5.27261,3416.4,3415.6,2.92774]
[1721357049088,2.3455,3416.4,3415.8,2.92755]
[1721357049581,2.92688,3416.7,3416.0,2.92738]
[1721357050353,2.92689,3416.6,3415.8,2.92755]
[1721357050556,3.6398002,3416.3,3415.8,2.92755]
[1721357051104,3.6398002,3416.3,3415.9,2.92747]
[1721357052096,3.04282836,3416.3,3416.0,2.92737]
[1721357052388,3.04282836,3416.3,3416.2,2.92722]
[1721357052951,3.04282836,3416.3,3416.2,5.85444]
[1721357053890,3.04282836,3416.3,3416.2,8.85444]